[Event "*** SCC Grand Prix: Titled Tuesday Blitz"]
[Site "Chess.com"]
[Date "2020.09.29"]
[Round "10"]
[White "paulrusan"]
[Black "Skatchkov_V"]
[Result "0-1"]
[WhiteElo "2285"]
[BlackElo "2608"]
[TimeControl "180+1"]
[EndTime "11:55:33 PDT"]
[Termination "Skatchkov_V won by resignation"]

1. e4 {[%clk 0:03:00.9]} 1... e5 {[%clk 0:02:56.4]} 2. Nf3 {[%clk 0:03:00.3]}
2... Nf6 {[%clk 0:02:54.7]} 3. Nc3 {[%clk 0:02:58.9]} 3... Nc6 {[%clk
0:02:51.8]} 4. g3 {[%clk 0:02:58.8]} 4... d5 {[%clk 0:02:46.9]} 5. exd5 {[%clk
0:02:56.3]} 5... Nxd5 {[%clk 0:02:46]} 6. Bg2 {[%clk 0:02:56.6]} 6... Bc5 {[%clk
0:02:38.8]} 7. O-O {[%clk 0:02:55.9]} 7... O-O {[%clk 0:02:30.9]} 8. Re1 {[%clk
0:02:41.8]} 8... Nxc3 {[%clk 0:02:28]} 9. bxc3 {[%clk 0:02:41.3]} 9... Qf6
{[%clk 0:02:27.2]} 10. d3 {[%clk 0:02:34.3]} 10... Bg4 {[%clk 0:02:23.1]} 11. h3
{[%clk 0:02:33.6]} 11... Bh5 {[%clk 0:02:18.3]} 12. g4 {[%clk 0:02:33.8]} 12...
Bg6 {[%clk 0:02:17.8]} 13. Bg5 {[%clk 0:02:23]} 13... Qd6 {[%clk 0:02:09.9]} 14.
Nd2 {[%clk 0:02:22.8]} 14... f5 {[%clk 0:01:48.1]} 15. Be3 {[%clk 0:01:53]}
15... fxg4 {[%clk 0:01:28.1]} 16. Qxg4 {[%clk 0:01:43]} 16... Bxe3 {[%clk
0:01:25.8]} 17. Rxe3 {[%clk 0:01:38.7]} 17... Rf4 {[%clk 0:01:24.3]} 18. Qg3
{[%clk 0:01:33.5]} 18... Raf8 {[%clk 0:01:23.9]} 19. Rb1 {[%clk 0:01:26.8]}
19... b6 {[%clk 0:00:59.9]} 20. Ne4 {[%clk 0:01:26.4]} 20... Qe6 {[%clk
0:00:50.8]} 21. c4 {[%clk 0:01:13.8]} 21... Nd4 {[%clk 0:00:48.9]} 22. Ng5
{[%clk 0:01:07.3]} 22... Qf6 {[%clk 0:00:40.8]} 23. Bd5+ {[%clk 0:01:03.7]}
23... Kh8 {[%clk 0:00:40.3]} 24. c3 {[%clk 0:00:50.5]} 24... Nf5 {[%clk
0:00:30.4]} 25. Qg2 {[%clk 0:00:33.7]} 25... Nxe3 {[%clk 0:00:27.3]} 26. fxe3
{[%clk 0:00:33.9]} 26... Rf2 {[%clk 0:00:26.6]} 27. Nf7+ {[%clk 0:00:19.8]}
27... Rxf7 {[%clk 0:00:24.9]} 28. Bxf7 {[%clk 0:00:18.5]} 28... Rxg2+ {[%clk
0:00:24]} 29. Kxg2 {[%clk 0:00:19]} 29... Qxf7 {[%clk 0:00:24.1]} 30. Rf1 {[%clk
0:00:18.4]} 30... Qe7 {[%clk 0:00:23.1]} 31. e4 {[%clk 0:00:17.4]} 31... h6
{[%clk 0:00:23.3]} 32. h4 {[%clk 0:00:14.8]} 32... Qa3 {[%clk 0:00:23.1]} 33.
Kg3 {[%clk 0:00:12.8]} 33... Qxc3 {[%clk 0:00:22.9]} 34. Rf8+ {[%clk 0:00:12]}
34... Kh7 {[%clk 0:00:22.4]} 35. Rc8 {[%clk 0:00:12.8]} 35... Qxd3+ {[%clk
0:00:22.1]} 36. Kf2 {[%clk 0:00:13.2]} 36... Bxe4 {[%clk 0:00:20.9]} 0-1

[Event "*** SCC Grand Prix: Titled Tuesday Blitz"]
[Site "Chess.com"]
[Date "2020.09.29"]
[Round "10"]
[White "IngOscarArdila"]
[Black "leoduarte"]
[Result "0-1"]
[WhiteElo "2154"]
[BlackElo "2302"]
[TimeControl "180+1"]
[EndTime "11:55:36 PDT"]
[Termination "leoduarte won by resignation"]

1. d4 {[%clk 0:03:00.9]} 1... Nf6 {[%clk 0:02:52.7]} 2. c4 {[%clk 0:03:00.6]}
2... c5 {[%clk 0:02:51.2]} 3. d5 {[%clk 0:03:00.4]} 3... b5 {[%clk 0:02:51.7]}
4. cxb5 {[%clk 0:03:00.7]} 4... a6 {[%clk 0:02:52.2]} 5. bxa6 {[%clk 0:03:01.6]}
5... g6 {[%clk 0:02:51.8]} 6. Nc3 {[%clk 0:03:02.5]} 6... Bg7 {[%clk 0:02:52.2]}
7. e4 {[%clk 0:03:03.4]} 7... O-O {[%clk 0:02:49.6]} 8. Nf3 {[%clk 0:03:03]}
8... Qa5 {[%clk 0:02:50.1]} 9. Bd2 {[%clk 0:03:02.9]} 9... Bxa6 {[%clk
0:02:35.5]} 10. Be2 {[%clk 0:03:02.4]} 10... Bxe2 {[%clk 0:02:22.8]} 11. Qxe2
{[%clk 0:03:01.5]} 11... d6 {[%clk 0:02:19.4]} 12. O-O {[%clk 0:02:59]} 12...
Qa6 {[%clk 0:02:15.9]} 13. Qxa6 {[%clk 0:02:48.5]} 13... Nxa6 {[%clk 0:02:13.3]}
14. a4 {[%clk 0:02:46.4]} 14... Nc7 {[%clk 0:02:07.5]} 15. Ra2 {[%clk 0:02:44]}
15... Rfb8 {[%clk 0:02:04.9]} 16. Rb1 {[%clk 0:02:41.6]} 16... Nd7 {[%clk
0:02:03.3]} 17. b3 {[%clk 0:02:39.8]} 17... Rb4 {[%clk 0:01:43]} 18. Ne1 {[%clk
0:02:23.7]} 18... Bxc3 {[%clk 0:01:32.9]} 19. Bxc3 {[%clk 0:02:22.7]} 19... Rxe4
{[%clk 0:01:30.6]} 20. Rd2 {[%clk 0:02:15]} 20... Nb6 {[%clk 0:01:14.2]} 21.
Rbd1 {[%clk 0:02:12.9]} 21... Nbxd5 {[%clk 0:00:55]} 22. Rxd5 {[%clk 0:02:08.6]}
22... Nxd5 {[%clk 0:00:55.9]} 23. Rxd5 {[%clk 0:02:07.9]} 23... Rb8 {[%clk
0:00:56.3]} 24. f3 {[%clk 0:02:06.4]} 24... Re2 {[%clk 0:00:55.1]} 25. Kf1
{[%clk 0:02:04.4]} 25... Ra2 {[%clk 0:00:50.4]} 26. Rd2 {[%clk 0:01:43.7]} 26...
Rxd2 {[%clk 0:00:46.5]} 27. Bxd2 {[%clk 0:01:44.6]} 27... Rxb3 {[%clk
0:00:46.6]} 28. Ke2 {[%clk 0:01:44.7]} 28... Kf8 {[%clk 0:00:46]} 29. Kd1 {[%clk
0:01:33.9]} 29... Ke8 {[%clk 0:00:43.3]} 30. Kc2 {[%clk 0:01:33.6]} 30... Ra3
{[%clk 0:00:43.1]} 31. a5 {[%clk 0:01:33.3]} 31... Ra2+ {[%clk 0:00:42.8]} 32.
Kc3 {[%clk 0:01:32.6]} 32... Rxa5 {[%clk 0:00:38.9]} 33. Nc2 {[%clk 0:01:30.5]}
33... Kd7 {[%clk 0:00:37.4]} 34. Ne3 {[%clk 0:01:29.2]} 34... Kc6 {[%clk
0:00:28.9]} 35. Kb3 {[%clk 0:01:29.3]} 35... Ra8 {[%clk 0:00:24]} 36. Kc2 {[%clk
0:01:27.2]} 36... d5 {[%clk 0:00:23.6]} 37. h4 {[%clk 0:01:26.1]} 37... e5
{[%clk 0:00:22.9]} 38. Ng4 {[%clk 0:01:25]} 38... Kd6 {[%clk 0:00:16.5]} 39. Nf6
{[%clk 0:01:24.3]} 39... Ra2+ {[%clk 0:00:12.7]} 40. Kd1 {[%clk 0:01:22.9]}
40... d4 {[%clk 0:00:12.8]} 41. Nxh7 {[%clk 0:01:21.2]} 41... c4 {[%clk
0:00:12.4]} 42. Ng5 {[%clk 0:01:21]} 42... f5 {[%clk 0:00:11.6]} 43. Bb4+ {[%clk
0:01:18.3]} 43... Kd5 {[%clk 0:00:11.4]} 44. g4 {[%clk 0:01:17]} 44... fxg4
{[%clk 0:00:11.5]} 45. fxg4 {[%clk 0:01:16.8]} 45... c3 {[%clk 0:00:12.1]} 46.
h5 {[%clk 0:01:13.5]} 46... gxh5 {[%clk 0:00:12.5]} 47. gxh5 {[%clk 0:01:13.6]}
47... Kc4 {[%clk 0:00:13.4]} 48. Bd6 {[%clk 0:01:10.7]} 48... d3 {[%clk
0:00:12.9]} 49. Ke1 {[%clk 0:01:05.5]} 49... d2+ {[%clk 0:00:13.1]} 50. Ke2
{[%clk 0:01:05.1]} 50... Ra1 {[%clk 0:00:13.3]} 0-1

[Event "*** SCC Grand Prix: Titled Tuesday Blitz"]
[Site "Chess.com"]
[Date "2020.09.29"]
[Round "10"]
[White "lelya96"]
[Black "AttilaTurzo"]
[Result "0-1"]
[WhiteElo "2194"]
[BlackElo "2397"]
[TimeControl "180+1"]
[EndTime "11:55:36 PDT"]
[Termination "AttilaTurzo won by resignation"]

1. e4 {[%clk 0:03:00.9]} 1... c5 {[%clk 0:02:58.9]} 2. Nf3 {[%clk 0:03:00]} 2...
Nc6 {[%clk 0:02:56.4]} 3. Bb5 {[%clk 0:02:58.8]} 3... g6 {[%clk 0:02:52.8]} 4.
Bxc6 {[%clk 0:02:58]} 4... dxc6 {[%clk 0:02:32.3]} 5. O-O {[%clk 0:02:48.1]}
5... Bg7 {[%clk 0:02:31.2]} 6. d3 {[%clk 0:02:44.7]} 6... Nf6 {[%clk 0:02:28.9]}
7. Nc3 {[%clk 0:02:43.4]} 7... O-O {[%clk 0:02:27.9]} 8. Be3 {[%clk 0:02:42.7]}
8... Nd7 {[%clk 0:02:27.4]} 9. a3 {[%clk 0:02:37.3]} 9... a5 {[%clk 0:02:22.7]}
10. d4 {[%clk 0:02:37.1]} 10... cxd4 {[%clk 0:02:19.7]} 11. Bxd4 {[%clk
0:02:36.9]} 11... e5 {[%clk 0:02:02.2]} 12. Be3 {[%clk 0:02:33.7]} 12... Qc7
{[%clk 0:01:57.2]} 13. h3 {[%clk 0:02:31.4]} 13... Rd8 {[%clk 0:01:56.2]} 14.
Qe2 {[%clk 0:02:31.3]} 14... Nf8 {[%clk 0:01:49.6]} 15. Rfd1 {[%clk 0:02:26.4]}
15... Be6 {[%clk 0:01:45.2]} 16. Na4 {[%clk 0:02:22.7]} 16... Rxd1+ {[%clk
0:01:36.8]} 17. Rxd1 {[%clk 0:02:21.9]} 17... Nd7 {[%clk 0:01:31.9]} 18. Nc5
{[%clk 0:02:16.3]} 18... Nxc5 {[%clk 0:01:31]} 19. Bxc5 {[%clk 0:02:16.7]} 19...
f6 {[%clk 0:01:26.6]} 20. Qe3 {[%clk 0:02:08.6]} 20... Rd8 {[%clk 0:01:16.9]}
21. Rd3 {[%clk 0:01:58.4]} 21... Rxd3 {[%clk 0:01:14.4]} 22. Qxd3 {[%clk
0:01:57]} 22... b6 {[%clk 0:01:12]} 23. Be3 {[%clk 0:01:51.3]} 23... Bf8 {[%clk
0:01:10.1]} 24. Nd2 {[%clk 0:01:49.1]} 24... b5 {[%clk 0:01:01.4]} 25. Nb3
{[%clk 0:01:40.9]} 25... Bc4 {[%clk 0:00:57.6]} 26. Qc3 {[%clk 0:01:34.6]} 26...
a4 {[%clk 0:00:47.3]} 27. Nd2 {[%clk 0:01:31.5]} 27... Be6 {[%clk 0:00:45.9]}
28. Qd3 {[%clk 0:01:25.3]} 28... Qd7 {[%clk 0:00:42.4]} 29. Qxd7 {[%clk
0:01:10.6]} 29... Bxd7 {[%clk 0:00:43.3]} 30. c4 {[%clk 0:01:10.7]} 30... Be6
{[%clk 0:00:36.8]} 31. cxb5 {[%clk 0:01:09]} 31... cxb5 {[%clk 0:00:37.7]} 32.
f3 {[%clk 0:01:07.6]} 32... b4 {[%clk 0:00:37.5]} 33. axb4 {[%clk 0:01:00.2]}
33... Bxb4 {[%clk 0:00:38.4]} 34. Nb1 {[%clk 0:01:00.4]} 34... f5 {[%clk
0:00:35.5]} 35. Na3 {[%clk 0:00:57]} 35... Kf7 {[%clk 0:00:32]} 36. Kf2 {[%clk
0:00:55.2]} 36... fxe4 {[%clk 0:00:29.9]} 37. fxe4 {[%clk 0:00:54.9]} 37... Bb3
{[%clk 0:00:30]} 38. Bb6 {[%clk 0:00:46.3]} 38... Ke6 {[%clk 0:00:29.7]} 39. Ke3
{[%clk 0:00:45.7]} 39... Be1 {[%clk 0:00:26.6]} 40. Ke2 {[%clk 0:00:38.8]} 40...
Bg3 {[%clk 0:00:25.9]} 41. Kf3 {[%clk 0:00:38.2]} 41... Bf4 {[%clk 0:00:25.6]}
42. Ke2 {[%clk 0:00:37.2]} 42... Bc1 {[%clk 0:00:25]} 43. Nb5 {[%clk 0:00:29.2]}
43... Bxb2 {[%clk 0:00:21.7]} 44. Bc5 {[%clk 0:00:28.2]} 44... Bc4+ {[%clk
0:00:20.5]} 0-1

[Event "*** SCC Grand Prix: Titled Tuesday Blitz"]
[Site "Chess.com"]
[Date "2020.09.29"]
[Round "10"]
[White "fighter2jz"]
[Black "Tooweak2slow03"]
[Result "1-0"]
[WhiteElo "2661"]
[BlackElo "2790"]
[TimeControl "180+1"]
[EndTime "11:55:39 PDT"]
[Termination "fighter2jz won by resignation"]

1. e4 {[%clk 0:03:00.9]} 1... e6 {[%clk 0:02:58.7]} 2. d4 {[%clk 0:02:58.1]}
2... d5 {[%clk 0:02:59.6]} 3. Nc3 {[%clk 0:02:58.7]} 3... h6 {[%clk 0:02:59.4]}
4. Bd3 {[%clk 0:02:56]} 4... Nc6 {[%clk 0:02:58.9]} 5. Nf3 {[%clk 0:02:50.1]}
5... Nb4 {[%clk 0:02:57.1]} 6. Bb5+ {[%clk 0:02:48.6]} 6... c6 {[%clk
0:02:57.1]} 7. Be2 {[%clk 0:02:49.3]} 7... Nf6 {[%clk 0:02:56.2]} 8. e5 {[%clk
0:02:48.8]} 8... Ne4 {[%clk 0:02:56.6]} 9. O-O {[%clk 0:02:47.6]} 9... c5 {[%clk
0:02:56.2]} 10. Be3 {[%clk 0:02:43.3]} 10... Be7 {[%clk 0:02:47.3]} 11. dxc5
{[%clk 0:02:40.7]} 11... Nxc3 {[%clk 0:02:42.9]} 12. bxc3 {[%clk 0:02:40.2]}
12... Nc6 {[%clk 0:02:43.8]} 13. Bb5 {[%clk 0:02:37.2]} 13... Bd7 {[%clk
0:02:39.9]} 14. Bxc6 {[%clk 0:02:34.6]} 14... Bxc6 {[%clk 0:02:40.8]} 15. Nd4
{[%clk 0:02:34.5]} 15... Rc8 {[%clk 0:02:40.4]} 16. f4 {[%clk 0:02:33.2]} 16...
Bxc5 {[%clk 0:02:36.8]} 17. f5 {[%clk 0:02:32.3]} 17... Bxd4 {[%clk 0:02:35.2]}
18. cxd4 {[%clk 0:02:20.4]} 18... exf5 {[%clk 0:02:26.1]} 19. Rxf5 {[%clk
0:02:09]} 19... O-O {[%clk 0:02:25.7]} 20. Bxh6 {[%clk 0:01:46.5]} 20... gxh6
{[%clk 0:02:26.6]} 21. Qg4+ {[%clk 0:01:45.8]} 21... Kh7 {[%clk 0:01:45.3]} 22.
Rf6 {[%clk 0:01:45.5]} 22... Bd7 {[%clk 0:01:43.7]} 23. Qf4 {[%clk 0:01:42.5]}
23... Qxf6 {[%clk 0:01:41.7]} 24. Qxf6 {[%clk 0:01:39.1]} 24... Be6 {[%clk
0:01:40.6]} 25. Qe7 {[%clk 0:01:24.6]} 25... Rg8 {[%clk 0:01:38.9]} 26. Rf1
{[%clk 0:01:22.1]} 26... Rg7 {[%clk 0:01:38.3]} 27. Rf2 {[%clk 0:01:19.6]} 27...
Rc6 {[%clk 0:01:35]} 28. Qxb7 {[%clk 0:01:14.6]} 28... Rb6 {[%clk 0:01:35.2]}
29. Qxa7 {[%clk 0:01:14.8]} 29... Rc6 {[%clk 0:01:27.7]} 30. Qa3 {[%clk
0:01:08.9]} 30... Rc4 {[%clk 0:01:24.6]} 31. Qd3+ {[%clk 0:01:07.9]} 31... Kg8
{[%clk 0:01:22.9]} 32. h3 {[%clk 0:01:05.3]} 32... Rg5 {[%clk 0:01:21.1]} 33.
Rf6 {[%clk 0:01:04]} 33... Kg7 {[%clk 0:01:20.5]} 34. c3 {[%clk 0:00:59.5]}
34... Ra4 {[%clk 0:01:18.8]} 35. h4 {[%clk 0:00:51.4]} 35... Rg4 {[%clk
0:01:17.5]} 36. Rxe6 {[%clk 0:00:40.4]} 36... Rxa2 {[%clk 0:01:15.6]} 37. Rf6
{[%clk 0:00:26]} 37... Rgxg2+ {[%clk 0:01:15.5]} 38. Kf1 {[%clk 0:00:26]} 38...
Rgc2 {[%clk 0:01:14]} 39. Qg3+ {[%clk 0:00:17.1]} 39... Kf8 {[%clk 0:01:13.8]}
40. Rf2 {[%clk 0:00:17.2]} 40... Rc1+ {[%clk 0:01:07.1]} 41. Kg2 {[%clk
0:00:17.2]} 41... Raa1 {[%clk 0:01:08]} 42. Qf3 {[%clk 0:00:15.8]} 42... Rg1+
{[%clk 0:01:05.8]} 43. Kh2 {[%clk 0:00:16.2]} 43... Rg7 {[%clk 0:01:03.6]} 44.
Qf6 {[%clk 0:00:16.4]} 44... Kg8 {[%clk 0:01:01.3]} 45. e6 {[%clk 0:00:16.5]}
45... fxe6 {[%clk 0:00:59.3]} 46. Qxe6+ {[%clk 0:00:16]} 46... Kh7 {[%clk
0:01:00.2]} 47. Qf5+ {[%clk 0:00:16.2]} 47... Kh8 {[%clk 0:00:58.8]} 48. Qxd5
{[%clk 0:00:14.9]} 48... Rag1 {[%clk 0:00:55.7]} 49. Rf8+ {[%clk 0:00:14.5]}
49... Kh7 {[%clk 0:00:55.8]} 50. Qe4+ {[%clk 0:00:14.2]} 50... R7g6 {[%clk
0:00:51.8]} 51. h5 {[%clk 0:00:13.8]} 51... Rg2+ {[%clk 0:00:51.9]} 52. Qxg2
{[%clk 0:00:13.7]} 52... Rxg2+ {[%clk 0:00:51.4]} 53. Kxg2 {[%clk 0:00:14.6]}
1-0

[Event "*** SCC Grand Prix: Titled Tuesday Blitz"]
[Site "Chess.com"]
[Date "2020.09.29"]
[Round "10"]
[White "Rogarcia1"]
[Black "HanSchut"]
[Result "1-0"]
[WhiteElo "2130"]
[BlackElo "2197"]
[TimeControl "180+1"]
[EndTime "11:55:42 PDT"]
[Termination "Rogarcia1 won by checkmate"]

1. e4 {[%clk 0:03:00.9]} 1... c5 {[%clk 0:02:58.1]} 2. Nf3 {[%clk 0:03:00.6]}
2... d6 {[%clk 0:02:56.8]} 3. d4 {[%clk 0:03:00.3]} 3... cxd4 {[%clk 0:02:57.7]}
4. Qxd4 {[%clk 0:02:59.9]} 4... Nc6 {[%clk 0:02:44.7]} 5. Qe3 {[%clk 0:03:00]}
5... g6 {[%clk 0:02:41.5]} 6. Be2 {[%clk 0:02:58]} 6... Bg7 {[%clk 0:02:33.1]}
7. O-O {[%clk 0:02:55.2]} 7... Nf6 {[%clk 0:02:28.4]} 8. h3 {[%clk 0:02:54.7]}
8... O-O {[%clk 0:02:26.4]} 9. c4 {[%clk 0:02:54.9]} 9... h6 {[%clk 0:02:13.6]}
10. Rd1 {[%clk 0:02:54.6]} 10... Bd7 {[%clk 0:01:58.9]} 11. Nc3 {[%clk
0:02:53.8]} 11... Rc8 {[%clk 0:01:57.1]} 12. Bd2 {[%clk 0:02:52.7]} 12... a6
{[%clk 0:01:53.5]} 13. Rac1 {[%clk 0:02:52.1]} 13... Kh7 {[%clk 0:01:50.8]} 14.
b3 {[%clk 0:02:49.2]} 14... Re8 {[%clk 0:01:47.4]} 15. Qf4 {[%clk 0:02:29.5]}
15... Nh5 {[%clk 0:01:36.6]} 16. Qe3 {[%clk 0:02:29]} 16... Be6 {[%clk
0:01:25.7]} 17. Na4 {[%clk 0:02:24.9]} 17... Nf6 {[%clk 0:01:09.8]} 18. Nb6
{[%clk 0:02:20]} 18... Rb8 {[%clk 0:00:57.3]} 19. Bc3 {[%clk 0:02:19.5]} 19...
Nd7 {[%clk 0:00:52.7]} 20. Nd5 {[%clk 0:02:15.6]} 20... Nce5 {[%clk 0:00:40.6]}
21. Nxe5 {[%clk 0:02:13.4]} 21... Nxe5 {[%clk 0:00:37]} 22. f4 {[%clk
0:02:12.8]} 22... Nc6 {[%clk 0:00:35.8]} 23. Rf1 {[%clk 0:01:50.4]} 23... f5
{[%clk 0:00:31.6]} 24. Bxg7 {[%clk 0:01:46.4]} 24... Kxg7 {[%clk 0:00:31.4]} 25.
exf5 {[%clk 0:01:46.9]} 25... Bxf5 {[%clk 0:00:31.7]} 26. g4 {[%clk 0:01:47.1]}
26... Bc8 {[%clk 0:00:27.4]} 27. f5 {[%clk 0:01:43.8]} 27... g5 {[%clk 0:00:26]}
28. Qc3+ {[%clk 0:01:32.3]} 28... Ne5 {[%clk 0:00:26.3]} 29. h4 {[%clk
0:01:29.2]} 29... b5 {[%clk 0:00:25.7]} 30. hxg5 {[%clk 0:01:18.9]} 30... hxg5
{[%clk 0:00:26.6]} 31. Qe3 {[%clk 0:01:19]} 31... Nf7 {[%clk 0:00:26.7]} 32. Bd3
{[%clk 0:01:13.8]} 32... Bb7 {[%clk 0:00:26.2]} 33. Qe4 {[%clk 0:01:10.3]} 33...
Bxd5 {[%clk 0:00:21.8]} 34. f6+ {[%clk 0:01:07.7]} 34... exf6 {[%clk 0:00:20.4]}
35. Qh7+ {[%clk 0:00:59.2]} 35... Kf8 {[%clk 0:00:20.9]} 36. cxd5 {[%clk
0:00:59.6]} 36... Re3 {[%clk 0:00:17.5]} 37. Bg6 {[%clk 0:00:49.9]} 37... Qd7
{[%clk 0:00:16.4]} 38. Bf5 {[%clk 0:00:47.2]} 38... Qa7 {[%clk 0:00:15.8]} 39.
Kh1 {[%clk 0:00:34.8]} 39... Rbe8 {[%clk 0:00:14.7]} 40. Be6 {[%clk 0:00:31.7]}
40... R8xe6 {[%clk 0:00:13.8]} 41. dxe6 {[%clk 0:00:31.9]} 41... Rxe6 {[%clk
0:00:14.7]} 42. Rc8+ {[%clk 0:00:31.6]} 42... Ke7 {[%clk 0:00:14.3]} 43. Qg8
{[%clk 0:00:26.6]} 43... Re3 {[%clk 0:00:10.5]} 44. Qe8# {[%clk 0:00:25.3]} 1-0

[Event "*** SCC Grand Prix: Titled Tuesday Blitz"]
[Site "Chess.com"]
[Date "2020.09.29"]
[Round "10"]
[White "davigator"]
[Black "GianmarcoVaR"]
[Result "1-0"]
[WhiteElo "2365"]
[BlackElo "2509"]
[TimeControl "180+1"]
[EndTime "11:55:44 PDT"]
[Termination "davigator won on time"]

1. e4 {[%clk 0:03:00.2]} 1... c5 {[%clk 0:02:46.1]} 2. Nf3 {[%clk 0:02:56]} 2...
d6 {[%clk 0:02:45.4]} 3. d4 {[%clk 0:02:55.3]} 3... cxd4 {[%clk 0:02:46.3]} 4.
Nxd4 {[%clk 0:02:55.4]} 4... Nf6 {[%clk 0:02:46.6]} 5. Nc3 {[%clk 0:02:55.5]}
5... a6 {[%clk 0:02:46]} 6. Bg5 {[%clk 0:02:54.9]} 6... Nbd7 {[%clk 0:02:45.8]}
7. f3 {[%clk 0:02:54]} 7... e6 {[%clk 0:02:41]} 8. Qd2 {[%clk 0:02:52.4]} 8...
Be7 {[%clk 0:02:41.2]} 9. h4 {[%clk 0:02:51.7]} 9... Ne5 {[%clk 0:02:29.7]} 10.
O-O-O {[%clk 0:02:50.4]} 10... Qc7 {[%clk 0:02:27.1]} 11. h5 {[%clk 0:02:40]}
11... h6 {[%clk 0:02:26.6]} 12. Be3 {[%clk 0:02:40]} 12... b5 {[%clk 0:02:24.8]}
13. Bd3 {[%clk 0:02:37.8]} 13... Nc4 {[%clk 0:02:24.5]} 14. Bxc4 {[%clk
0:02:37.5]} 14... Qxc4 {[%clk 0:02:25.2]} 15. Kb1 {[%clk 0:02:37.5]} 15... Bd7
{[%clk 0:02:24.5]} 16. g4 {[%clk 0:02:32.4]} 16... b4 {[%clk 0:02:16.9]} 17.
Nce2 {[%clk 0:02:31.9]} 17... a5 {[%clk 0:02:12.4]} 18. Nc1 {[%clk 0:02:25.2]}
18... a4 {[%clk 0:02:12.1]} 19. b3 {[%clk 0:02:22.2]} 19... Qa6 {[%clk
0:02:11.3]} 20. Rhg1 {[%clk 0:02:09.9]} 20... e5 {[%clk 0:01:50.1]} 21. Nf5
{[%clk 0:02:08.3]} 21... Bxf5 {[%clk 0:01:50.3]} 22. gxf5 {[%clk 0:02:08.5]}
22... Nxh5 {[%clk 0:01:27.9]} 23. Qxb4 {[%clk 0:02:05.9]} 23... axb3 {[%clk
0:01:23.4]} 24. cxb3 {[%clk 0:02:05]} 24... d5 {[%clk 0:01:15.3]} 25. Bc5 {[%clk
0:01:53.1]} 25... Bg5 {[%clk 0:01:00]} 26. a4 {[%clk 0:01:41.6]} 26... Bxc1
{[%clk 0:00:46.5]} 27. Kxc1 {[%clk 0:01:35.5]} 27... Nf4 {[%clk 0:00:46.2]} 28.
Kb1 {[%clk 0:01:29]} 28... Kd7 {[%clk 0:00:20.4]} 29. Rxg7 {[%clk 0:01:14.7]}
29... Rhb8 {[%clk 0:00:19.3]} 30. Rxf7+ {[%clk 0:01:13.3]} 30... Ke8 {[%clk
0:00:16.6]} 31. Rf8+ {[%clk 0:01:13.1]} 31... Kd7 {[%clk 0:00:11.8]} 32. Rxb8
{[%clk 0:01:12.9]} 32... Rxb8 {[%clk 0:00:06.3]} 33. Qxb8 {[%clk 0:01:12.7]}
33... Nd3 {[%clk 0:00:06]} 34. Qd6+ {[%clk 0:01:07]} 34... Qxd6 {[%clk 0:00:06]}
35. Bxd6 {[%clk 0:01:07.3]} 35... dxe4 {[%clk 0:00:04.3]} 36. fxe4 {[%clk
0:01:06.3]} 36... Nf2 {[%clk 0:00:04.9]} 37. Rd5 {[%clk 0:00:58.3]} 37... Nxe4
{[%clk 0:00:04.8]} 38. Bxe5+ {[%clk 0:00:57.7]} 38... Kc6 {[%clk 0:00:04.6]} 39.
Rd4 {[%clk 0:00:57.1]} 39... Nc5 {[%clk 0:00:02.7]} 40. Kb2 {[%clk 0:00:55.8]}
40... h5 {[%clk 0:00:02.3]} 41. f6 {[%clk 0:00:55.2]} 41... h4 {[%clk
0:00:02.1]} 42. f7 {[%clk 0:00:55.2]} 42... Ne6 {[%clk 0:00:01.5]} 43. Rxh4
{[%clk 0:00:55]} 43... Kd5 {[%clk 0:00:01.2]} 44. Bg7 {[%clk 0:00:55.5]} 44...
Nxg7 {[%clk 0:00:01.2]} 45. f8=Q {[%clk 0:00:55]} 45... Ne6 {[%clk 0:00:02.1]}
46. Rh5+ {[%clk 0:00:53.4]} 46... Kd4 {[%clk 0:00:02.3]} 47. Qd6+ {[%clk
0:00:52.2]} 47... Ke4 {[%clk 0:00:01.9]} 48. Qxe6+ {[%clk 0:00:52.5]} 48... Kf4
{[%clk 0:00:02.3]} 49. Rh4+ {[%clk 0:00:51.4]} 49... Kg5 {[%clk 0:00:02.1]} 50.
Rg4+ {[%clk 0:00:50.9]} 1-0

[Event "*** SCC Grand Prix: Titled Tuesday Blitz"]
[Site "Chess.com"]
[Date "2020.09.29"]
[Round "10"]
[White "kosya4ok"]
[Black "GHANDEEVAM2003"]
[Result "1-0"]
[WhiteElo "2640"]
[BlackElo "2971"]
[TimeControl "180+1"]
[EndTime "11:55:45 PDT"]
[Termination "kosya4ok won by resignation"]

1. d4 {[%clk 0:03:00.5]} 1... b6 {[%clk 0:02:55.1]} 2. c4 {[%clk 0:03:00]} 2...
Bb7 {[%clk 0:02:56]} 3. Nc3 {[%clk 0:03:00.6]} 3... g6 {[%clk 0:02:56.7]} 4. e4
{[%clk 0:02:58.5]} 4... Bg7 {[%clk 0:02:57]} 5. d5 {[%clk 0:02:58]} 5... Na6
{[%clk 0:02:51.1]} 6. Be3 {[%clk 0:02:49.4]} 6... Nc5 {[%clk 0:02:48]} 7. Qc2
{[%clk 0:02:41.8]} 7... Nh6 {[%clk 0:02:44.5]} 8. Nf3 {[%clk 0:02:32.6]} 8...
Ng4 {[%clk 0:02:41]} 9. Bd4 {[%clk 0:02:27.7]} 9... Bxd4 {[%clk 0:02:34.4]} 10.
Nxd4 {[%clk 0:02:28.6]} 10... e5 {[%clk 0:02:35.1]} 11. Nf3 {[%clk 0:02:21.3]}
11... d6 {[%clk 0:02:31.3]} 12. b4 {[%clk 0:02:02.9]} 12... Nd7 {[%clk
0:02:30.6]} 13. Be2 {[%clk 0:01:56.4]} 13... a5 {[%clk 0:02:28.7]} 14. bxa5
{[%clk 0:01:48.5]} 14... Rxa5 {[%clk 0:02:29.6]} 15. Nd2 {[%clk 0:01:48.3]}
15... Nh6 {[%clk 0:02:19.7]} 16. Nb3 {[%clk 0:01:47.3]} 16... Ra8 {[%clk
0:02:18.8]} 17. a4 {[%clk 0:01:47.9]} 17... f5 {[%clk 0:02:16]} 18. a5 {[%clk
0:01:38.8]} 18... O-O {[%clk 0:02:10.9]} 19. O-O {[%clk 0:01:38.1]} 19... f4
{[%clk 0:01:55.4]} 20. axb6 {[%clk 0:01:18.2]} 20... cxb6 {[%clk 0:01:56.3]} 21.
Rxa8 {[%clk 0:01:12.8]} 21... Bxa8 {[%clk 0:01:57.2]} 22. Ra1 {[%clk 0:01:11.1]}
22... Qh4 {[%clk 0:01:51.3]} 23. Ra7 {[%clk 0:01:00]} 23... Nf6 {[%clk
0:01:49.7]} 24. Qa2 {[%clk 0:00:58.8]} 24... f3 {[%clk 0:01:10.3]} 25. Bxf3
{[%clk 0:00:56.7]} 25... Nfg4 {[%clk 0:01:10.7]} 26. h3 {[%clk 0:00:46.4]} 26...
Rxf3 {[%clk 0:01:10.3]} 27. gxf3 {[%clk 0:00:43.6]} 27... Qxh3 {[%clk
0:01:06.7]} 28. Rxa8+ {[%clk 0:00:43.3]} 28... Kg7 {[%clk 0:01:05]} 29. Qa7+
{[%clk 0:00:41.4]} 29... Nf7 {[%clk 0:00:49.7]} 30. fxg4 {[%clk 0:00:38.7]}
30... Qxg4+ {[%clk 0:00:50.6]} 31. Kf1 {[%clk 0:00:36.4]} 31... Qh3+ {[%clk
0:00:51]} 32. Ke2 {[%clk 0:00:37]} 32... Qxc3 {[%clk 0:00:51.4]} 33. Nd2 {[%clk
0:00:37.6]} 33... Qh3 {[%clk 0:00:48]} 34. Qe7 {[%clk 0:00:36.8]} 34... Qg4+
{[%clk 0:00:46.7]} 35. Kd3 {[%clk 0:00:33.5]} 35... Qf4 {[%clk 0:00:45.7]} 36.
Rd8 {[%clk 0:00:31.1]} 36... Qxf2 {[%clk 0:00:44.1]} 37. Rxd6 {[%clk 0:00:28.2]}
37... b5 {[%clk 0:00:39.8]} 38. Rd7 {[%clk 0:00:25.7]} 38... bxc4+ {[%clk
0:00:39.2]} 39. Kc2 {[%clk 0:00:23.3]} 39... h5 {[%clk 0:00:35.6]} 40. Qxe5+
{[%clk 0:00:21.5]} 40... Kh6 {[%clk 0:00:35.8]} 41. Qe7 {[%clk 0:00:19.4]} 41...
Kg7 {[%clk 0:00:34.2]} 42. Qxf7+ {[%clk 0:00:17]} 42... Qxf7 {[%clk 0:00:35.1]}
43. Rxf7+ {[%clk 0:00:17.9]} 43... Kxf7 {[%clk 0:00:35.9]} 44. Nf3 {[%clk
0:00:18.8]} 44... Kf6 {[%clk 0:00:35.1]} 45. e5+ {[%clk 0:00:19]} 45... Kf5
{[%clk 0:00:35.4]} 46. d6 {[%clk 0:00:19.3]} 46... Ke6 {[%clk 0:00:35.2]} 47.
Kc3 {[%clk 0:00:18.6]} 1-0